fUST/lending_fUST_20240820
["ID","MTS","AMOUNT","RATE_DAILY","PERIOD"]
[335363050,1724160654959,-500.0,0.00017534,2]
[335363051,1724160654969,-500.0,0.00017534,2]
[335363052,1724160654978,-500.0,0.00017534,2]
[335363053,1724160654988,-500.0,0.00017534,2]
[335363054,1724160655004,-500.0,0.00017534,2]
[335363055,1724160655015,-629.97,0.00017534,2]
[335363056,1724160655027,-780.17,0.00017534,2]
[335363057,1724160655040,-4747.67,0.00017534,2]
[335363058,1724160655050,-500.0,0.00017534,2]
[335363059,1724160655063,-500.0,0.00017534,2]
[335363060,1724160655075,-871.42,0.00017534,2]
[335363061,1724160655086,-500.0,0.00017534,2]
[335363062,1724160655097,-500.0,0.00017534,2]
[335363063,1724160655107,-1117.96,0.00017534,2]
[335363064,1724160655117,-500.0,0.00017534,2]
[335363065,1724160655128,-488.4,0.00017633,2]
[335363066,1724160655138,-226.7,0.00017633,2]
[335363067,1724160655149,-5117.28593988,0.00017679,2]
[335363068,1724160655159,-166.332644,0.00017742,2]
[335363069,1724160655168,-500.0,0.00017808,2]
[335363070,1724160655178,-500.0,0.00017808,2]
[335363071,1724160655187,-500.0,0.00017808,2]
[335363072,1724160655196,-500.0,0.00017808,2]
[335363073,1724160655206,-704.48,0.00017808,2]
[335363074,1724160655216,-1361.02,0.00017808,2]
[335363075,1724160655226,-500.0,0.00017808,2]
[335363076,1724160655235,-500.0,0.00017808,2]
[335363077,1724160655245,-765.44,0.00017808,2]
[335363078,1724160655254,-500.0,0.00017808,2]
[335363079,1724160655264,-500.0,0.00017808,2]
[335363080,1724160655273,-500.0,0.00017808,2]
[335363081,1724160655282,-500.0,0.00017808,2]
[335363082,1724160655292,-500.0,0.00017808,2]
[335363083,1724160655302,-500.0,0.00017808,2]
[335363084,1724160655312,-500.0,0.00017808,2]
[335363085,1724160655321,-500.0,0.00017808,2]
[335363086,1724160655331,-648.70014127,0.00017808,2]
[335363087,1724160655342,-500.0,0.00017808,2]
[335363088,1724160655351,-500.0,0.00017808,2]
[335363089,1724160655361,-574.57,0.00017808,2]
[335363090,1724160655371,-500.0,0.00017808,2]
[335363091,1724160655381,-500.0,0.00017808,2]
[335363092,1724160655391,-500.0,0.00017808,2]
[335363093,1724160655401,-551.74152002,0.00017808,2]
[335363094,1724160655413,-500.0,0.00017808,2]
[335363095,1724160655424,-1692.72,0.00017808,2]
[335363096,1724160655433,-500.0,0.00017808,2]
[335363097,1724160655443,-514.19550752,0.00017808,2]
[335363098,1724160655454,-506.83749623,0.00017808,2]
[335363099,1724160655466,-903.72,0.00017808,2]
[335363100,1724160655477,-500.0,0.00017808,2]
[335363101,1724160655488,-189.27118983,0.00017808,2]
[335363102,1724160655501,-500.0,0.00017808,2]
[335363103,1724160655510,-1665.29,0.00017808,2]
[335363104,1724160655520,-500.0,0.00017808,2]
[335363105,1724160655529,-500.0,0.00017808,2]
[335363106,1724160655538,-500.0,0.00017808,2]
[335363107,1724160655547,-489.35367587,0.00017808,2]
[335363108,1724160655557,-500.0,0.00017808,2]
[335363109,1724160655567,-500.0,0.00017808,2]
[335363110,1724160655576,-1086.16,0.00017808,2]
[335363111,1724160655586,-984.07,0.00017808,2]
[335363112,1724160655596,-500.0,0.00017808,2]
[335363113,1724160655606,-500.0,0.00017808,2]
[335363114,1724160655617,-500.0,0.00017808,2]
[335363115,1724160655628,-2745.62,0.00017808,2]
[335363116,1724160655639,-500.0,0.00017808,2]
[335363117,1724160655651,-500.0,0.00017808,2]
[335363118,1724160655661,-500.0,0.00017808,2]
[335363119,1724160655674,-629.08,0.00017808,2]
[335363120,1724160655685,-162.435199,0.00017808,2]
[335363121,1724160655696,-162.435199,0.00017808,2]
[335363122,1724160655706,-7199.964,0.00017808,2]
[335363123,1724160655717,-151.0,0.00017808,2]
[335363124,1724160655726,-7199.964,0.00017808,2]
[335363125,1724160655735,-500.0,0.00017808,2]
[335363126,1724160655745,-500.0,0.00017808,2]
[335363127,1724160655754,-500.0,0.00017808,2]
[335363128,1724160655763,-500.0,0.00017808,2]
[335363129,1724160655772,-500.0,0.00017808,2]
[335363130,1724160655781,-291.35,0.00017808,2]
[335363131,1724160655794,-151.0,0.00017808,2]
[335363132,1724160655805,-629.97,0.00017808,2]
[335363133,1724160655816,-780.17,0.00017808,2]
[335363134,1724160655826,-4747.67,0.00017808,2]
[335363135,1724160655837,-500.0,0.00017808,2]
[335363136,1724160655848,-579.37597392,0.00017808,2]
[335363137,1724160655858,-871.42,0.00017808,2]
[335363138,1724160655869,-500.0,0.00017808,2]
[335363139,1724160655881,-500.0,0.00017808,2]
[335363140,1724160655892,-1117.96,0.00017808,2]
[335363141,1724160655904,-500.0,0.00017808,2]
[335363142,1724160655915,-400.0,0.00017842,2]
[335363143,1724160655924,-400.0,0.00017842,2]
[335363144,1724160656039,-401.06641908,0.00017842,2]
[335363145,1724160656050,-5117.28593988,0.00017849,2]
[335363146,1724160656061,-488.4,0.00018032,2]
[335363147,1724160656071,-226.7,0.00018032,2]
[335363148,1724160656082,-500.0,0.00018082,2]
[335363149,1724160656092,-500.0,0.00018082,2]
[335363150,1724160656101,-500.0,0.00018082,2]
[335363151,1724160656110,-704.48,0.00018082,2]
[335363152,1724160656120,-1361.02,0.00018082,2]
[335363153,1724160656130,-500.0,0.00018082,2]
[335363154,1724160656139,-765.44,0.00018082,2]
[335363155,1724160656148,-500.0,0.00018082,2]
[335363156,1724160656158,-500.0,0.00018082,2]
[335363157,1724160656167,-500.0,0.00018082,2]
[335363158,1724160656176,-500.0,0.00018082,2]
[335363159,1724160656185,-500.0,0.00018082,2]
[335363160,1724160656194,-500.0,0.00018082,2]
[335363161,1724160656204,-500.0,0.00018082,2]
[335363162,1724160656214,-485.75164508,0.00018082,2]
[335363163,1724160656223,-500.0,0.00018082,2]
[335363164,1724160656232,-500.0,0.00018082,2]
[335363165,1724160656241,-500.0,0.00018082,2]
[335363166,1724160656250,-1692.72,0.00018082,2]
[335363167,1724160656260,-903.72,0.00018082,2]
[335363168,1724160656270,-525.80407988,0.00018082,2]
[335363169,1724160656280,-500.0,0.00018082,2]
[335363170,1724160656289,-1665.29,0.00018082,2]
[335363171,1724160656298,-500.0,0.00018082,2]
[335363172,1724160656308,-500.0,0.00018082,2]
[335363173,1724160656317,-500.0,0.00018082,2]
[335363174,1724160656327,-500.0,0.00018082,2]
[335363175,1724160656336,-151.660139,0.00018082,2]
[335363176,1724160656346,-500.0,0.00018082,2]
[335363177,1724160656356,-1086.16,0.00018082,2]
[335363178,1724160656368,-984.07,0.00018082,2]
[335363179,1724160656380,-500.0,0.00018082,2]
[335363180,1724160656391,-500.0,0.00018082,2]
[335363181,1724160656401,-176.183414,0.00018082,2]
[335363182,1724160656412,-176.183414,0.00018082,2]
[335363183,1724160656423,-151.0,0.00018082,2]
[335363184,1724160656433,-151.0,0.00018082,2]
[335363185,1724160656444,-151.0,0.00018082,2]
[335363186,1724160656456,-500.0,0.00018082,2]
[335363187,1724160656466,-151.0,0.00018082,2]
[335363188,1724160656478,-2745.62,0.00018082,2]
[335363189,1724160656491,-500.0,0.00018082,2]
[335363190,1724160656502,-500.0,0.00018082,2]
[335363191,1724160656513,-151.0,0.00018082,2]
[335363192,1724160656524,-172.49134743,0.00018082,2]
[335363193,1724160656537,-629.08,0.00018082,2]
[335363194,1724160656548,-500.0,0.00018082,2]
[335363195,1724160656559,-500.0,0.00018082,2]
[335363196,1724160656569,-500.0,0.00018082,2]
[335363197,1724160656579,-500.0,0.00018082,2]
[335363198,1724160656591,-500.0,0.00018082,2]
[335363199,1724160656608,-629.97,0.00018082,2]
[335363200,1724160656618,-780.17,0.00018082,2]
[335363201,1724160656628,-4747.67,0.00018082,2]
[335363202,1724160656638,-406.73689988,0.00018082,2]
[335363203,1724160656648,-871.42,0.00018082,2]
[335363204,1724160656658,-500.0,0.00018082,2]
[335363205,1724160656668,-1117.96,0.00018082,2]
[335363206,1724160656678,-500.0,0.00018082,2]
[335363207,1724160656688,-150.112233,0.000181,2]
[335363208,1724160656697,-2000.0,0.00018134,2]
[335363209,1724160656706,-2000.0,0.00018142,2]
[335363210,1724160656716,-800.0,0.00018171,2]
[335363211,1724160656726,-151.0,0.00018171,2]
[335363212,1724160656736,-151.0,0.00018171,2]
[335363213,1724160656746,-166.033899,0.00018175,2]
[335363214,1724160656755,-168.584172,0.00018175,2]
[335363215,1724160656764,-166.332644,0.00018175,2]
[335363216,1724160656773,-176.95291,0.00018175,2]
[335363217,1724160656783,-173.982437,0.00018175,2]
[335363218,1724160656795,-5117.28593988,0.00018198,2]
[335363219,1724160656805,-800.0,0.00018215,2]
[335363220,1724160656816,-2000.0,0.00018222,2]
[335363221,1724160656827,-2000.0,0.00018226,2]
[335363222,1724160656839,-2000.0,0.00018235,2]
[335363223,1724160656849,-2000.0,0.00018238,2]
[335363224,1724160656860,-800.0,0.00018261,2]
[335363225,1724160656870,-800.0,0.00018283,2]
[335363226,1724160656881,-800.0,0.00018315,2]
[335363227,1724160656891,-800.0,0.00018319,2]
[335363228,1724160656902,-500.0,0.00018328,2]
[335363229,1724160656913,-800.0,0.0001833,2]
[335363230,1724160656923,-155.104913,0.0001835,2]
[335363231,1724160656936,-500.0,0.00018356,2]
[335363232,1724160656946,-500.0,0.00018356,2]
[335363233,1724160656955,-500.0,0.00018356,2]
[335363234,1724160656965,-704.48,0.00018356,2]
[335363235,1724160656976,-1361.02,0.00018356,2]
[335363236,1724160656990,-500.0,0.00018356,2]
[335363237,1724160657004,-765.44,0.00018356,2]
[335363238,1724160657017,-287.49000296,0.00018356,2]
[335363239,1724160657037,-283.11063343,0.00018356,2]
[335363240,1724160657054,-500.0,0.00018356,2]
[335363241,1724160657069,-500.0,0.00018356,2]
[335363242,1724160657087,-305.249749,0.00018356,2]
[335363243,1724160657103,-500.0,0.00018356,2]
[335363244,1724160657121,-500.0,0.00018356,2]
[335363245,1724160657136,-500.0,0.00018356,2]
[335363246,1724160657151,-500.0,0.00018356,2]
[335363247,1724160657166,-1692.72,0.00018356,2]
[335363248,1724160657179,-903.72,0.00018356,2]
[335363249,1724160657191,-221.988396,0.00018356,2]
[335363250,1724160657206,-500.0,0.00018356,2]
[335363251,1724160657220,-1665.29,0.00018356,2]
[335363252,1724160657231,-497.27218882,0.00018356,2]
[335363253,1724160657243,-500.0,0.00018356,2]
[335363254,1724160657256,-151.0,0.00018356,2]
[335363255,1724160657270,-500.0,0.00018356,2]
[335363256,1724160657285,-500.0,0.00018356,2]
[335363257,1724160657300,-226.487695,0.00018356,2]
[335363258,1724160657315,-226.487695,0.00018356,2]
[335363259,1724160657326,-436.62837868,0.00018356,2]
[335363260,1724160657337,-1086.16,0.00018356,2]
[335363261,1724160657349,-984.07,0.00018356,2]
[335363262,1724160657364,-500.0,0.00018356,2]
[335363263,1724160657379,-500.0,0.00018356,2]
[335363264,1724160657389,-151.0,0.00018356,2]
[335363265,1724160657403,-151.0,0.00018356,2]
[335363266,1724160657416,-500.0,0.00018356,2]
[335363267,1724160657429,-168.25147,0.00018356,2]
[335363268,1724160657440,-2745.62,0.00018356,2]
[335363269,1724160657452,-500.0,0.00018356,2]
[335363270,1724160657464,-500.0,0.00018356,2]
[335363271,1724160657476,-629.08,0.00018356,2]
[335363272,1724160657489,-500.0,0.00018356,2]
[335363273,1724160657501,-500.0,0.00018356,2]
[335363274,1724160657512,-500.0,0.00018356,2]
[335363275,1724160657525,-450.23678246,0.00018356,2]
[335363276,1724160657537,-500.0,0.00018356,2]
[335363277,1724160657548,-629.97,0.00018356,2]
[335363278,1724160657561,-780.17,0.00018356,2]
[335363279,1724160657573,-4747.67,0.00018356,2]
[335363280,1724160657585,-871.42,0.00018356,2]
[335363281,1724160657597,-500.0,0.00018356,2]
[335363282,1724160657609,-151.0,0.00018356,2]
[335363283,1724160657621,-1117.96,0.00018356,2]
[335363284,1724160657633,-500.0,0.00018367,2]
[335363285,1724160657645,-665.80919906,0.000184,2]
[335363286,1724160657656,-160.0,0.00018411,4]
[335363287,1724160657668,-160.0,0.00018411,5]
[335363288,1724160657680,-800.0,0.00018415,2]
[335363289,1724160657692,-488.4,0.0001843,2]
[335363290,1724160657704,-226.7,0.0001843,2]
[335363291,1724160657716,-1400.0,0.00018453,2]
[335363292,1724160657727,-1400.0,0.00018459,2]
[335363293,1724160657739,-800.0,0.00018468,2]
[335363294,1724160657751,-2000.0,0.00018484,2]
[335363295,1724160657765,-696.2028767,0.00018491,2]
[335363296,1724160657778,-2000.0,0.00018565,2]
[335363297,1724160657793,-1400.0,0.00018567,2]
[335363298,1724160657809,-5117.28593988,0.00018594,2]
[335363299,1724160657822,-500.0,0.0001863,2]
[335363300,1724160657834,-500.0,0.0001863,2]
[335363301,1724160657848,-500.0,0.0001863,2]
[335363302,1724160657860,-704.48,0.0001863,2]
[335363303,1724160657872,-1361.02,0.0001863,2]
[335363304,1724160657886,-500.0,0.0001863,2]
[335363305,1724160657899,-765.44,0.0001863,2]
[335363306,1724160657914,-500.0,0.0001863,2]
[335363307,1724160657927,-500.0,0.0001863,2]
[335363308,1724160657941,-500.0,0.0001863,2]
[335363309,1724160657955,-500.0,0.0001863,2]
[335363310,1724160657968,-500.0,0.0001863,2]
[335363311,1724160657982,-500.0,0.0001863,2]
[335363312,1724160657997,-151.0,0.0001863,2]
[335363313,1724160658010,-1692.72,0.0001863,2]
[335363314,1724160658023,-151.0,0.0001863,2]
[335363315,1724160658036,-903.72,0.0001863,2]
[335363316,1724160658049,-500.0,0.0001863,2]
[335363317,1724160658062,-1665.29,0.0001863,2]
[335363318,1724160658076,-500.0,0.0001863,2]
[335363319,1724160658089,-500.0,0.0001863,2]
[335363320,1724160658101,-500.0,0.0001863,2]
[335363321,1724160658113,-2000.0,0.0001863,2]
[335363322,1724160658125,-1086.16,0.0001863,2]
[335363323,1724160658137,-984.07,0.0001863,2]
[335363324,1724160658150,-500.0,0.0001863,2]
[335363325,1724160658162,-500.0,0.0001863,2]
[335363326,1724160658174,-500.0,0.0001863,2]
[335363327,1724160658186,-2745.62,0.0001863,2]
[335363328,1724160658199,-500.0,0.0001863,2]
[335363329,1724160658212,-500.0,0.0001863,2]
[335363330,1724160658355,-629.08,0.0001863,2]
[335363331,1724160658376,-500.0,0.0001863,2]
[335363332,1724160658387,-500.0,0.0001863,2]
[335363333,1724160658399,-500.0,0.0001863,2]
[335363334,1724160658409,-500.0,0.0001863,2]
[335363335,1724160658419,-629.97,0.0001863,2]
[335363336,1724160658428,-780.17,0.0001863,2]
[335363337,1724160658438,-4747.67,0.0001863,2]
[335363338,1724160658449,-871.42,0.0001863,2]
[335363339,1724160658459,-500.0,0.0001863,2]
[335363340,1724160658470,-1117.96,0.0001863,2]
[335363341,1724160658479,-800.0,0.0001864,2]
[335363342,1724160658490,-151.0,0.0001866,2]
[335363343,1724160658500,-151.0,0.0001866,2]
[335363344,1724160658510,-500.0,0.00018664,2]
[335363345,1724160658520,-800.0,0.00018668,2]
[335363346,1724160658532,-800.0,0.00018672,2]
[335363347,1724160658542,-800.0,0.00018691,2]
[335363348,1724160658554,-800.0,0.00018743,2]
[335363349,1724160658565,-5117.28593988,0.00018773,2]
[335363350,1724160658575,-2000.0,0.0001882,2]
[335363351,1724160658586,-488.4,0.00018829,2]
[335363352,1724160658597,-226.7,0.00018829,2]
[335363353,1724160658609,-500.0,0.0001883,2]
[335363354,1724160658619,-500.0,0.00018899,2]
[335363355,1724160658629,-800.0,0.00018902,2]
[335363356,1724160658642,-500.0,0.00018904,2]
[335363357,1724160658652,-500.0,0.00018904,2]
[335363358,1724160658661,-500.0,0.00018904,2]
[335363359,1724160658671,-1584.02368528,0.00018904,2]
[335363360,1724160658681,-704.48,0.00018904,2]
[335363361,1724160658693,-1361.02,0.00018904,2]
[335363362,1724160658703,-151.0,0.00018904,2]
[335363363,1724160658713,-500.0,0.00018904,2]
[335363364,1724160658723,-765.44,0.00018904,2]
[335363365,1724160658733,-158.336649,0.00018904,2]
[335363366,1724160658743,-158.336649,0.00018904,2]
[335363367,1724160658753,-500.0,0.00018904,2]
[335363368,1724160658763,-500.0,0.00018904,2]
[335363369,1724160658772,-636.75669908,0.00018904,2]
[335363370,1724160658782,-335.71629779,0.00018904,2]
[335363371,1724160658792,-500.0,0.00018904,2]
[335363372,1724160658801,-206.0847449,0.00018904,2]
[335363373,1724160658810,-1692.72,0.00018904,2]
[335363374,1724160658820,-903.72,0.00018904,2]
[335363375,1724160658830,-500.0,0.00018904,2]
[335363376,1724160658841,-1665.29,0.00018904,2]
[335363377,1724160658851,-500.0,0.00018904,2]
[335363378,1724160658862,-500.0,0.00018904,2]
[335363379,1724160658871,-500.0,0.00018904,2]
[335363380,1724160658881,-1086.16,0.00018904,2]
[335363381,1724160658892,-984.07,0.00018904,2]
[335363382,1724160658902,-500.0,0.00018904,2]
[335363383,1724160658911,-500.0,0.00018904,2]
[335363384,1724160658921,-554.54478804,0.00018904,2]
[335363385,1724160658931,-2745.62,0.00018904,2]
[335363386,1724160658941,-500.0,0.00018904,2]
[335363387,1724160658950,-629.08,0.00018904,2]
[335363388,1724160658960,-162.435199,0.00018904,2]
[335363389,1724160658969,-162.435199,0.00018904,2]
[335363390,1724160658980,-7199.964,0.00018904,2]
[335363391,1724160658994,-151.0,0.00018904,2]
[335363392,1724160659004,-7199.964,0.00018904,2]
[335363393,1724160659014,-500.0,0.00018904,2]
[335363394,1724160659025,-500.0,0.00018904,2]
[335363395,1724160659036,-500.0,0.00018904,2]
[335363396,1724160659047,-500.0,0.00018904,2]
[335363397,1724160659058,-151.0,0.00018904,2]
[335363398,1724160659072,-629.97,0.00018904,2]
[335363399,1724160659084,-780.17,0.00018904,2]
[335363400,1724160659097,-4747.67,0.00018904,2]
[335363401,1724160659109,-871.42,0.00018904,2]
[335363402,1724160659119,-500.0,0.00018904,2]
[335363403,1724160659129,-500.0,0.00018977,2]
[335363404,1724160659139,-2000.0,0.00018997,2]
[335363405,1724160659148,-300.0,0.00019,8]
[335363406,1724160659158,-155.12080504,0.00019,2]
[335363407,1724160659168,-2191.84436898,0.00019,2]
[335363408,1724160659180,-3743.58166603,0.00019,2]
[335363409,1724160659190,-5117.28593988,0.00019013,2]
[335363410,1724160659200,-800.0,0.00019046,2]
[335363411,1724160659211,-2000.0,0.00019049,2]
[335363412,1724160659222,-500.0,0.0001905,2]
[335363413,1724160659234,-500.0,0.00019084,2]
[335363414,1724160659246,-186.56971264,0.000191,2]
[335363415,1724160659256,-500.0,0.00019107,2]
[335363416,1724160659267,-1400.0,0.00019112,2]
[335363417,1724160659277,-1400.0,0.00019124,2]
[335363418,1724160659287,-500.0,0.00019136,2]
[335363419,1724160659297,-2000.0,0.00019163,2]
[335363420,1724160659307,-500.0,0.00019178,2]
[335363421,1724160659317,-500.0,0.00019178,2]
[335363422,1724160659327,-500.0,0.00019178,2]
[335363423,1724160659336,-704.48,0.00019178,2]
[335363424,1724160659347,-1361.02,0.00019178,2]
[335363425,1724160659356,-500.0,0.00019178,2]
[335363426,1724160659366,-765.44,0.00019178,2]
[335363427,1724160659376,-500.0,0.00019178,2]
[335363428,1724160659386,-500.0,0.00019178,2]
[335363429,1724160659395,-500.0,0.00019178,2]
[335363430,1724160659405,-1692.72,0.00019178,2]
[335363431,1724160659414,-903.72,0.00019178,2]
[335363432,1724160659424,-500.0,0.00019178,2]
[335363433,1724160659434,-1665.29,0.00019178,2]
[335363434,1724160659444,-500.0,0.00019178,2]
[335363435,1724160659454,-500.00927083,0.00019178,2]
[335363436,1724160659465,-406.80250803,0.00019178,2]
[335363437,1724160659474,-1086.16,0.00019178,2]
[335363438,1724160659484,-984.07,0.00019178,2]
[335363439,1724160659494,-500.0,0.00019178,2]
[335363440,1724160659504,-500.0,0.00019178,2]
[335363441,1724160659514,-176.183414,0.00019178,2]
[335363442,1724160659524,-176.183414,0.00019178,2]
[335363443,1724160659533,-151.0,0.00019178,2]
[335363444,1724160659543,-151.0,0.00019178,2]
[335363445,1724160659552,-2745.62,0.00019178,2]
[335363446,1724160659563,-500.0,0.00019178,2]
[335363447,1724160659573,-151.0,0.00019178,2]
[335363448,1724160659583,-629.08,0.00019178,2]
[335363449,1724160659595,-500.0,0.00019178,2]
[335363450,1724160659606,-537.10252462,0.00019178,2]
[335363451,1724160659617,-500.0,0.00019178,2]
[335363452,1724160659627,-469.68919391,0.00019178,2]
[335363453,1724160660059,-933.89722372,9.999e-05,2]
[335363454,1724160660070,-601.94985179,0.00011621,2]
[335363455,1724160660080,-154.76012181,0.00012898,2]
[335363456,1724160660091,-154.76012181,0.00012934,2]
[335363457,1724160660101,-20797.12874944,0.00013971,2]
[335363458,1724160660110,-500.0,0.00016438,2]
[335363459,1724160660120,-500.0,0.00016438,2]
[335363460,1724160660131,-500.0,0.00016438,2]
[335363461,1724160660142,-504.05457436,0.00016438,2]
[335363462,1724160660153,-500.1932811,0.00016712,2]
[335363463,1724160660165,-500.0,0.00016712,2]
[335363464,1724160660176,-500.0,0.00016712,2]
[335363465,1724160660187,-500.0,0.00016986,2]
[335363466,1724160660197,-500.0,0.00016986,2]
[335363467,1724160660208,-151.0,0.0001726,2]
[335363468,1724160660219,-505.01568702,0.0001726,2]
[335363469,1724160660229,-41835.68920378,0.00018105,2]
[335363470,1724160660238,-500.0,0.00018356,2]
[335363471,1724160660249,-151.0,0.00018356,2]
[335363472,1724160660259,-500.0,0.0001863,2]
[335363473,1724160660269,-1117.96,0.00018904,2]
[335363474,1724160660279,-500.0,0.00018904,2]
[335363475,1724160660290,-30.31080609,0.00019178,2]
[335363476,1724160660300,-629.97,0.00019178,2]
[335363477,1724160660310,-780.17,0.00019178,2]
[335363478,1724160660320,-4747.67,0.00019178,2]
[335363479,1724160660330,-871.42,0.00019178,2]
[335363480,1724160660342,-500.0,0.00019178,2]
[335363481,1724160660351,-500.0,0.00019178,2]
[335363482,1724160660360,-500.0,0.00019178,2]
[335363483,1724160660369,-236.46170231,0.00019178,2]
[335363484,1724160660379,-1117.96,0.00019178,2]
[335363485,1724160660388,-500.0,0.00019178,2]
[335363486,1724160660397,-205.855948,0.00019178,2]
[335363487,1724160660406,-264.33381,0.00019178,2]
[335363488,1724160660416,-151.0,0.00019178,2]
[335363489,1724160660426,-151.0,0.00019178,2]
[335363490,1724160660436,-251.0,0.00019178,2]
[335363491,1724160660446,-546.05318971,0.00019183,2]
[335363492,1724160660456,-1400.0,0.00019191,2]
[335363493,1724160660465,-76102.82,0.000192,2]
[335363494,1724160660476,-151.0,0.000192,2]
[335363495,1724160660486,-152.389918,0.000192,2]
[335363496,1724160660496,-226.487695,0.000192,2]
[335363497,1724160660506,-226.487695,0.000192,2]
[335363498,1724160660516,-151.0,0.000192,2]
[335363499,1724160660525,-151.0,0.000192,2]
[335363500,1724160660535,-151.0,0.000192,2]
[335363501,1724160660545,-151.0,0.000192,2]
[335363502,1724160660554,-1400.0,0.00019218,2]
[335363503,1724160660564,-488.4,0.00019227,2]
[335363504,1724160660574,-226.7,0.00019227,2]
[335363505,1724160660583,-500.0,0.00019231,2]
[335363506,1724160660598,-4518.62256853,0.00019234,2]
[335363507,1724160660613,-1400.0,0.00019251,2]
[335363508,1724160660623,-2000.0,0.00019272,2]
[335363509,1724160660632,-500.0,0.000193,2]
[335363510,1724160660641,-2000.0,0.00019309,2]
[335363511,1724160660651,-800.0,0.00019315,2]
[335363512,1724160660661,-800.0,0.00019331,2]
[335363513,1724160660671,-1400.0,0.00019353,2]
[335363514,1724160660681,-5117.28593988,0.00019361,2]
[335363515,1724160660692,-800.0,0.00019368,2]
[335363516,1724160660701,-603.0,0.000194,2]
[335363517,1724160660711,-476.56014384,0.00019416,2]
[335363518,1724160660721,-500.0,0.0001944,2]
[335363519,1724160660731,-1400.0,0.00019443,2]
[335363520,1724160660740,-150.0,0.00019446,2]
[335363521,1724160660750,-500.0,0.00019452,2]
[335363522,1724160660759,-500.0,0.00019452,2]
[335363523,1724160660769,-500.0,0.00019452,2]
[335363524,1724160660779,-1361.02,0.00019452,2]
[335363525,1724160660788,-500.0,0.00019452,2]
[335363526,1724160660798,-765.44,0.00019452,2]
[335363527,1724160660917,-298.01769894,0.00019452,2]
[335363528,1724160660927,-500.0,0.00019452,2]
[335363529,1724160660936,-151.0,0.00019452,2]
[335363530,1724160660946,-500.0,0.00019452,2]
[335363531,1724160660955,-151.0,0.00019452,2]
[335363532,1724160660964,-234.084086,0.00019452,2]
[335363533,1724160660974,-1692.72,0.00019452,2]
[335363534,1724160660983,-151.0,0.00019452,2]
[335363535,1724160660996,-903.72,0.00019452,2]
[335363536,1724160661006,-500.0,0.00019452,2]
[335363537,1724160661016,-1665.29,0.00019452,2]
[335363538,1724160661026,-500.0,0.00019452,2]
[335363539,1724160661036,-1086.16,0.00019452,2]
[335363540,1724160661046,-984.07,0.00019452,2]
[335363541,1724160661055,-500.0,0.00019452,2]
[335363542,1724160661065,-500.0,0.00019452,2]
[335363543,1724160661076,-2745.62,0.00019452,2]
[335363544,1724160661086,-500.0,0.00019452,2]
[335363545,1724160661105,-629.08,0.00019452,2]
[335363546,1724160661115,-500.0,0.00019452,2]
[335363547,1724160661124,-500.0,0.00019452,2]
[335363548,1724160661134,-500.0,0.00019452,2]
[335363549,1724160661144,-629.97,0.00019452,2]